Workbook

Sheet Base de Calcul
A2: Intitulé | B2: Ligne Orthodromique | H2: Longeur | I2: Caps | K2: Distance
A3: Positions | B3: Latitude | E3: Longitude | H3: en km | K3: Intermédiaire (km)
A4: Brest | B4: 45 | C4: 30 | D4: =IF(OR(B4<0,AND(B4=0,C4<0)),"S","N") -> N | E4: 3 | F4: 45 | G4: =IF(OR(E4<0,AND(E4=0,F4<0)),"W","E") -> E | I4: =VincentyInvFwdAzimuth(A5,D5,A7,D7) -> 304.2819649 | K4: 4500
A5: =B5+C5/60 -> 45.5 | B5: =B4 -> 45 | C5: =IF(B4<0,-ABS(C4),ABS(C4)) -> 30 | D5: =E5+F5/60 -> 3.75 | E5: =E4 -> 3 | F5: =IF(E4<0,-ABS(F4),ABS(F4)) -> 45 | H5: =VincentyInvDistance(A5,D5,A7,D7)/1000 -> 5992.311166
A6: NY | B6: 47 | C6: 45 | D6: =IF(OR(B6<0,AND(B6=0,C6<0)),"S","N") -> N | E6: -78 | F6: 30 | G6: =IF(OR(E6<0,AND(E6=0,F6<0)),"W","E") -> W | I6: =VincentyInvRevAzimuth(A5,D5,A7,D7) -> 239.455897
A7: =B7+C7/60 -> 47.75 | B7: =B6 -> 47 | C7: =IF(B6<0,-ABS(C6),ABS(C6)) -> 45 | D7: =E7+F7/60 -> -78.5 | E7: =E6 -> -78 | F7: =IF(E6<0,-ABS(F6),ABS(F6)) -> -30
B8: Positions Recherchées | H8: Distance (km) | I8: Cap
B9: Latitude | E9: Longitude | H9: Calculée | I9: Calculé
B10: =TRUNC(B11,0) -> 53 | C10: =(B11-B10)*60 -> 4.045208147 | D10: =IF(OR(B10<0,AND(B10=0,C10<0)),"S","N") -> N | E10: =TRUNC(E11,0) -> -59 | F10: =(E11-E10)*60 -> -8.033852933 | G10: =IF(OR(E10<0,AND(E10=0,F10<0)),"W","E") -> W | H10: =VincentyInvDistance(A5,D5,B11,E11)/1000 -> 4500 | I10: =VincentyInvRevAzimuth(A5,D5,B11,E11) -> 254.4535351
B11: =VincentyDirLat(A5,D5,I4,K4*1000) -> 53.06742014 | E11: =VincentyDirLon(A5,D5,I4,K4*1000) -> -59.13389755
